[Event "Prague Open 2025"]
[Site "Prague"]
[Date "2025.01.13"]
[Round "5.12"]
[White "Zhukovskyi, Oleksandr"]
[Black "Mouryc, Tomas"]
[Result "1-0"]
[Annotator "ChessBase"]
[ECO "B52"]
[WhiteElo "2162"]
[BlackElo "1932"]
[PlyCount "143"]
[EventDate "2025.01.07"]
[EventType "swiss"]
[EventCountry "CZE"]
[SourceTitle "playchess.com"]
[Source "ChessBase"]
[SourceQuality "1"]
[TimeControl "40/5400+30:1800+30"]

1. e4 {[%emt 0:00:03]} c5 {[%emt 0:00:10]} 2. Nf3 {[%emt 0:00:06]} d6 {[%emt 0:00:08]} 3. Bb5+ {[%emt 0:00:04]} Bd7 {[%emt 0:00:15]} 4. Bxd7+ {[%emt 0:00:15]} Qxd7 {[%emt 0:00:09]} 5. d4 {[%emt 0:03:25]} cxd4 {[%emt 0:00:30]} 6. Nxd4 {[%emt 0:00:07]} Nf6 {[%emt 0:03:07]} 7. f3 {[%emt 0:00:59]} g6 {[%emt 0:01:43]} 8. c4 {[%emt 0:00:08]} Bg7 {[%emt 0:00:10]} 9. Be3 {[%emt 0:01:43]} Nc6 {[%emt 0:00:47]} 10. Nc3 {[%emt 0:00:21]} O-O {[%emt 0:01:09]} 11. O-O {[%emt 0:00:55]} a6 {[%emt 0:07:09]} 12. Nb3 {[%emt 0:02:13]} Ne5 {[%emt 0:08:58]} 13. Qe2 {[%emt 0:00:08]} Rac8 {[%emt 0:01:08]} 14. c5 {[%emt 0:17:43]} d5 {[%emt 0:33:24]} 15. Bd4 {[%emt 0:23:59]} Qe6 {[%emt 0:20:19]} 16. f4 {[%emt 0:04:10]} Ned7 {[%emt 0:02:45]} 17. e5 {[%emt 0:01:20]} Ne8 {[%emt 0:00:40]} 18. Qf3 {[%emt 0:05:06]} Nc7 {[%emt 0:03:16]} 19. Be3 {[%emt 0:01:24]} f6 {[%emt 0:02:10]} 20. Nd4 {[%emt 0:20:17]} Qf7 {[%emt 0:00:07]} 21. e6 {[%emt 0:00:57]} Nxe6 {[%emt 0:00:24]} 22. Nxe6 {[%emt 0:00:17]} Qxe6 {[%emt 0:00:11]} 23. Rae1 {[%emt 0:01:10]} Rfe8 {[%emt 0:06:05]} 24. Nxd5 {[%emt 0:07:45]} Qc6 {[%emt 0:00:22]} 25. b4 {[%emt 0:03:08]} e6 {[%emt 0:03:37]} 26. Nc3 {[%emt 0:00:04]} Qxf3 {[%emt 0:00:03]} 27. gxf3 {[%emt 0:01:32]} f5 {[%emt 0:00:48]} 28. Na4 {[%emt 0:00:59]} e5 {[%emt 0:00:09]} 29. Rd1 {[%emt 0:00:27]} exf4 {[%emt 0:03:55]} 30. Bxf4 {[%emt 0:01:34]} Ne5 {[%emt 0:00:26]} 31. Nb6 {[%emt 0:02:40]} Rcd8 {[%emt 0:01:08]} 32. Rd5 {[%emt 0:00:59]} Nd3 {[%emt 0:00:46]} 33. Rd1 {[%emt 0:00:05]} Rxd5 {[%emt 0:00:21]} 34. Nxd5 {[%emt 0:00:03]} Nxf4 {[%emt 0:00:36]} 35. Nxf4 {[%emt 0:00:03]} Bc3 {[%emt 0:00:10]} 36. Nd5 {[%emt 0:01:08]} Bg7 {[%emt 0:00:49]} 37. Kf2 {[%emt 0:00:56]} Kf7 {[%emt 0:00:01]} 38. Nb6 {[%emt 0:00:28]} Re7 {[%emt 0:00:43]} 39. Nc8 {[%emt 0:00:35]} Rc7 {[%emt 0:00:31]} 40. Nd6+ {[%emt 0:00:42]} Kf8 {[%emt 0:00:34]} 41. Re1 {[%emt 0:16:06]} Re7 {[%emt 0:12:37]} 42. Rxe7 {[%emt 0:00:12]} Kxe7 43. Nxb7 {[%emt 0:00:19]} Kd7 {[%emt 0:00:06]} 44. Na5 {[%emt 0:06:10]} Bc3 {[%emt 0:03:11]} 45. a3 {[%emt 0:00:04]} Bb2 {[%emt 0:00:02]} 46. Nc4 {[%emt 0:00:13]} Bc1 {[%emt 0:00:02]} 47. Ke2 {[%emt 0:05:36]} Ke6 {[%emt 0:05:22]} 48. a4 {[%emt 0:03:38]} g5 {[%emt 0:05:03]} 49. h3 {[%emt 0:00:35]} h5 {[%emt 0:00:29]} 50. c6 {[%emt 0:01:53]} Bf4 {[%emt 0:07:42]} 51. Ne3 {[%emt 0:00:45]} g4 52. fxg4 fxg4 {[%emt 0:00:40]} 53. hxg4 {[%emt 0:00:59]} hxg4 {[%emt 0:00:24]} 54. b5 {[%emt 0:00:31]} axb5 {[%emt 0:00:58]} 55. axb5 {[%emt 0:00:30]} Bc7 {[%emt 0:01:03]} 56. Kd3 {[%emt 0:00:28]} Kd6 {[%emt 0:00:36]} 57. Kc4 {[%emt 0:00:30]} g3 {[%emt 0:00:29]} 58. Nf5+ {[%emt 0:00:19]} Ke6 {[%emt 0:00:11]} 59. Ne3 {[%emt 0:00:42]} Bb6 {[%emt 0:00:29]} 60. Nd5 {[%emt 0:00:16]} Kd6 {[%emt 0:00:50]} 61. Nf4 {[%emt 0:00:29]} Bf2 {[%emt 0:00:29]} 62. Ng2 {[%emt 0:00:42]} Bb6 {[%emt 0:00:22]} 63. Nh4 {[%emt 0:00:30]} Bf2 {[%emt 0:00:32]} 64. Kb4 {[%emt 0:00:20]} Be1+ {[%emt 0:00:36]} 65. Ka4 {[%emt 0:00:01]} Kc7 {[%emt 0:00:11]} 66. Ng2 {[%emt 0:00:32]} Bd2 {[%emt 0:00:27]} 67. Kb3 {[%emt 0:00:32]} Kb6 {[%emt 0:00:37]} 68. Kc4 {[%emt 0:00:10]} Ba5 {[%emt 0:00:47]} 69. Ne3 {[%emt 0:01:17]} Kc7 {[%emt 0:00:21]} 70. Kd5 {[%emt 0:00:38]} Bb6 {[%emt 0:00:30]} 71. Ke4 {[%emt 0:00:20]} Bc5 {[%emt 0:00:39]} 72. Kf3 {[%emt 0:00:19]} 1-0

[Event "Prague Open 2025"]
[Site "Prague"]
[Date "2025.01.13"]
[Round "5.13"]
[White "Bezeyko, Olexander"]
[Black "Moser, Axel"]
[Result "1-0"]
[Annotator "TA"]
[ECO "C22"]
[WhiteElo "2050"]
[BlackElo "2160"]
[PlyCount "89"]
[EventDate "2025.01.07"]
[EventType "swiss"]
[EventCountry "CZE"]
[SourceTitle "playchess.com"]
[Source "ChessBase"]
[SourceQuality "1"]
[TimeControl "40/5400+30:1800+30"]

{[%evp 9,89,-25,-21,-56,-62,-62,-54,-56,-50,-66,0,0,0,0,0,0,0,-9,-7,-19,12,12,41,33,76,48,54,41,115,15,12,4,75,29,14,9,13,0,11,3,10,8,33,34,35,40,37,29,29,33,58,62,36,25,36,31,29,13,91,89,113,110,66,74,202,189,335,317,313,8,9,0,411,395,454,414,436,366,503,466,418,398]} 1. e4 {[%emt 0:00:03]} e5 {[%emt 0:00:05]} 2. d4 {[%emt 0:00:12]} exd4 {[%emt 0:00:25]} 3. Qxd4 {[%emt 0:00:04]} Nc6 {[%emt 0:01:07]} 4. Qd3 {[%emt 0:00:05]} d5 {[%emt 0:01:22]} 5. exd5 {[%emt 0:22:04]} Nb4 $1 {[%emt 0:00:16][%csl LRd3,LRd5]} 6. Qc4 {[%emt 0:02:06]} Bf5 {[%emt 0:08:27]} 7. Na3 {[%emt 0:02:10]} Qxd5 {[%emt 0:09:27]} 8. Bf4 {[%emt 0:13:59]} c6 {[%emt 0:05:48] aiming for ...0-0-0.} 9. c3 {[%emt 0:02:26]} Nd3+ {[%emt 0:04:50]} ({Black should play} 9... Bd3 $1 $15 10. Qb3 (10. Qxd5 Nxd5 11. Bxd3 Nxf4 $17) 10... Qe4+ 11. Be3 Nf6) 10. Bxd3 $11 {[%emt 0:00:27]} Qxd3 {[%emt 0:00:40]} 11. Qxd3 {[%emt 0:01:26]} Bxd3 {[%emt 0:00:06]} 12. O-O-O {[%emt 0:00:52]} O-O-O {[%emt 0:00:35]} 13. Nc2 {[%emt 0:00:57]} Nf6 {[%emt 0:03:50]} 14. Be3 {[%emt 0:07:16][%cal Bf4e3,Be3a7,Ba7b6][%mdl 32] White is weak on the light squares} Ng4 {[%emt 0:09:16]} (14... Bc4 {simplifies} 15. Rxd8+ Kxd8 16. b3 Bf1) 15. Bxa7 c5 {[%emt 0:00:25]} 16. Nh3 {[%emt 0:16:59]} Be7 {[%emt 0:01:18]} 17. Bb6 {[%emt 0:02:31]} Rd7 {[%emt 0:00:37]} 18. Rhe1 {[%emt 0:02:10][%cal Od1d3] Repels Ne5} Bxc2 {[%emt 0:01:38]} (18... Bf5 $14) 19. Rxd7 {[%emt 0:03:48]} (19. Kxc2 $16 {Threatens to win with f3.} Rxd1 20. Rxd1 (20. Kxd1 Kd7 $16)) 19... Kxd7 {[%emt 0:00:12]} 20. Kxc2 {[%emt 0:00:03]} Re8 {[%emt 0:00:23]} (20... Ra8 $11) 21. f3 {[%emt 0:01:29]} (21. Kb3 $16) 21... Nf6 $1 {[%emt 0:00:27]} 22. c4 {[%emt 0:02:17]} Ra8 $1 {[%emt 0:00:25]} 23. Bc7 {[%emt 0:02:44][%cal Oa2a3] Prevents Bd6} Ne8 {[%emt 0:01:50]} 24. Be5 {[%emt 0:02:36]} Rxa2 {[%emt 0:00:23]} 25. Nf4 {[%emt 0:01:29]} Nf6 {[%emt 0:03:00]} 26. Rd1+ {[%emt 0:01:20]} Ke8 {[%emt 0:00:33]} 27. g4 {[%emt 0:03:14][%cal Bg2g4,Bg4g5][%mdl 32]} g6 {[%emt 0:01:02]} 28. Re1 {[%emt 0:02:09]} Kd8 {[%emt 0:00:26]} 29. g5 {[%emt 0:01:48]} Ne8 {[%emt 0:02:56]} 30. Nd5 {[%emt 0:02:17]} Bd6 $1 {[%emt 0:00:58]} (30... Bxg5 $2 31. Rd1 Ra5 32. Bg3 $18) 31. Kb3 {[%emt 0:01:50]} Ra6 {[%emt 0:00:51]} 32. f4 {[%emt 0:02:07]} Bxe5 {[%emt 0:02:13]} 33. Rxe5 {[%emt 0:00:40]} Re6 {[%emt 0:00:25]} (33... Nd6 $11 {remains equal.}) 34. Rxe6 $16 {[%emt 0:00:57]} fxe6 {[%emt 0:00:05][%mdl 4096] Endgame KN-KN} 35. Nc3 {[%emt 0:00:14]} Nd6 {[%emt 0:00:24]} 36. Na4 $1 {[%emt 0:00:23]} Ne4 {[%emt 0:04:01]} (36... e5 $16 {was necessary.}) 37. Kc2 $18 {[%emt 0:00:09]} Kc7 {[%emt 0:02:14]} (37... b6 $142 38. Nxb6 Kc7) 38. Kd3 {[%emt 0:00:12]} Nf2+ {[%emt 0:00:19]} 39. Ke2 $2 {[%emt 0:01:45]} (39. Ke3 $18 Ng4+ 40. Ke2 Nxh2 41. Nxc5) 39... Ne4 $11 {[%emt 0:00:32]} 40. Kd3 $2 {[%emt 0:00:35][%mdl 8192]} (40. b3 $11 Kc6 41. Nb2) 40... Nf2+ $18 {[%emt 0:00:06]} 41. Ke3 {[%emt 0:30:27]} Ng4+ {[%emt 0:32:34] [#]} 42. Ke2 $1 {[%emt 0:00:00]} Nxh2 {[%emt 0:00:00]} 43. Nxc5 {[%emt 0:00:00][%cal Ob2b4]} e5 {[%emt 0:00:00]} 44. fxe5 {[%emt 0:00:00]} Ng4 {[%emt 0:00:00]} 45. Nd3 {[%emt 0:00:00]} 1-0

[Event "Prague Open 2025"]
[Site "Prague"]
[Date "2025.01.13"]
[Round "5.14"]
[White "Skodras, Marios Konstantinos"]
[Black "Fizer, Marek"]
[Result "1/2-1/2"]
[Annotator "NA RC"]
[ECO "A04"]
[WhiteElo "2013"]
[BlackElo "2155"]
[PlyCount "50"]
[EventDate "2025.01.07"]
[EventType "swiss"]
[EventCountry "CZE"]
[SourceTitle "playchess.com"]
[Source "ChessBase"]
[SourceQuality "1"]
[TimeControl "40/5400+30:1800+30"]

1. Nf3 {[%emt 0:00:06]} c5 {[%emt 0:00:09]} 2. b3 {[%emt 0:00:04]} Nc6 {[%emt 0:00:10]} 3. Bb2 {[%emt 0:00:22]} Nf6 {[%emt 0:00:11]} 4. e3 {[%emt 0:01:49]} g6 {[%emt 0:00:23]} 5. c4 {[%emt 0:03:18]} Bg7 {[%emt 0:00:50]} 6. Nc3 {[%emt 0:00:50]} O-O {[%emt 0:02:30]} 7. d4 {[%emt 0:02:08]} cxd4 {[%emt 0:01:00]} 8. Nxd4 {[%emt 0:01:19]} d5 {[%emt 0:01:22]} 9. Nxd5 {[%emt 0:10:59]} Nxd5 {[%emt 0:03:42]} 10. cxd5 {[%emt 0:08:28]} Qa5+ {[%emt 0:31:01]} 11. Qd2 {[%emt 0:01:37]} Qxd5 {[%emt 0:00:14]} 12. Nxc6 {[%emt 0:01:15]} Qxd2+ {[%emt 0:07:05]} 13. Kxd2 {[%emt 0:00:15]} Bxb2 {[%emt 0:00:22]} 14. Nxe7+ {[%emt 0:04:30]} Kg7 {[%emt 0:00:07]} 15. Rb1 {[%emt 0:00:44]} Ba3 {[%emt 0:04:37]} 16. Nxc8 {[%emt 0:04:29]} Bb4+ {[%emt 0:00:09]} 17. Ke2 {[%emt 0:01:11]} Raxc8 {[%emt 0:00:50]} 18. Kf3 {[%emt 0:01:00]} Rc2 {[%emt 0:02:30]} 19. a4 {[%emt 0:13:25]} Rd8 {[%emt 0:05:58]} 20. Bc4 {[%emt 0:00:45]} Rdd2 {[%emt 0:02:26]} 21. Rhf1 {[%emt 0:00:47]} f5 {[%emt 0:01:00]} 22. Rbd1 {[%emt 0:01:47]} Kf6 {[%emt 0:02:09]} 23. Rxd2 {[%emt 0:03:05]} Rxd2 {[%emt 0:00:05]} 24. h3 {[%emt 0:03:14]} b6 {[%emt 0:02:34]} 25. Rg1 {[%emt 0:09:00]} Bc5 {[%emt 0:01:42]} 1/2-1/2

[Event "Prague Open 2025"]
[Site "Prague"]
[Date "2025.01.13"]
[Round "5.15"]
[White "Skettos, Nicolas"]
[Black "Tyomkyn, Mikhail"]
[Result "1/2-1/2"]
[Annotator "NA RC"]
[ECO "B56"]
[WhiteElo "1954"]
[BlackElo "2143"]
[PlyCount "39"]
[EventDate "2025.01.07"]
[EventType "swiss"]
[EventCountry "CZE"]
[SourceTitle "playchess.com"]
[Source "ChessBase"]
[SourceQuality "1"]
[TimeControl "40/5400+30:1800+30"]

1. e4 {[%emt 0:00:16]} c5 {[%emt 0:00:09]} 2. Nf3 {[%emt 0:00:48]} Nc6 {[%emt 0:00:07]} 3. d4 {[%emt 0:00:21]} cxd4 {[%emt 0:00:09]} 4. Nxd4 {[%emt 0:00:02]} Nf6 {[%emt 0:00:12]} 5. Nc3 {[%emt 0:00:02]} d6 {[%emt 0:00:09]} 6. Nd5 {[%emt 0:04:18]} a6 {[%emt 0:19:11]} 7. Nxf6+ {[%emt 0:01:52]} gxf6 {[%emt 0:00:06]} 8. Be3 {[%emt 0:02:53]} e5 {[%emt 0:09:04]} 9. Nxc6 {[%emt 0:08:55]} bxc6 {[%emt 0:00:07]} 10. c4 {[%emt 0:00:12]} f5 {[%emt 0:12:21]} 11. exf5 {[%emt 0:02:34]} Bxf5 {[%emt 0:00:09]} 12. f4 {[%emt 0:05:57]} Bg7 {[%emt 0:05:23]} 13. Qd2 {[%emt 0:06:17]} O-O {[%emt 0:11:48]} 14. Be2 {[%emt 0:09:04]} Re8 {[%emt 0:05:34]} 15. fxe5 {[%emt 0:15:40]} Bxe5 {[%emt 0:06:04]} 16. O-O {[%emt 0:05:34]} Bg6 {[%emt 0:00:07]} 17. Bf3 {[%emt 0:06:16]} Qh4 {[%emt 0:05:42]} 18. g3 {[%emt 0:02:13]} Bxg3 {[%emt 0:02:05]} 19. hxg3 {[%emt 0:07:57]} Qxg3+ {[%emt 0:00:02]} 20. Kh1 {[%emt 0:02:22]} 1/2-1/2

[Event "Prague Open 2025"]
[Site "Prague"]
[Date "2025.01.13"]
[Round "5.16"]
[White "Sindler, Michal"]
[Black "Topencik, Bruno"]
[Result "1/2-1/2"]
[Annotator "NA"]
[ECO "B50"]
[WhiteElo "2136"]
[BlackElo "1985"]
[PlyCount "93"]
[EventDate "2025.01.07"]
[EventType "swiss"]
[EventCountry "CZE"]
[SourceTitle "playchess.com"]
[Source "ChessBase"]
[SourceQuality "1"]
[TimeControl "40/5400+30:1800+30"]

1. e4 {[%emt 0:01:59]} c5 {[%emt 0:00:13]} 2. Nf3 {[%emt 0:00:09]} d6 {[%emt 0:00:15]} 3. Bc4 {[%emt 0:01:49]} Nf6 {[%emt 0:00:37]} 4. d3 {[%emt 0:00:26]} e6 {[%emt 0:00:20]} 5. O-O {[%emt 0:00:18]} Be7 {[%emt 0:00:24]} 6. Re1 {[%emt 0:00:23]} O-O {[%emt 0:00:27]} 7. Bb3 {[%emt 0:00:45]} Nc6 {[%emt 0:02:10]} 8. c3 {[%emt 0:00:15]} b5 {[%emt 0:00:50]} 9. d4 {[%emt 0:01:08]} Bb7 {[%emt 0:04:56]} 10. Nbd2 {[%emt 0:04:17]} Qc7 {[%emt 0:06:04]} 11. dxc5 {[%emt 0:14:45]} dxc5 {[%emt 0:00:55]} 12. e5 {[%emt 0:00:30]} Nd7 {[%emt 0:03:39]} 13. Qe2 {[%emt 0:01:09]} Rfd8 {[%emt 0:03:03]} 14. Bc2 {[%emt 0:18:27]} c4 {[%emt 0:05:36]} 15. Qe4 {[%emt 0:24:59]} Nf8 {[%emt 0:00:47]} 16. Qg4 {[%emt 0:04:21]} Rd5 {[%emt 0:12:21]} 17. Qg3 {[%emt 0:04:38]} Rad8 {[%emt 0:02:29]} 18. Be4 {[%emt 0:01:09]} R5d7 {[%emt 0:02:34]} 19. Nf1 {[%emt 0:02:31]} Ng6 {[%emt 0:22:01]} 20. h4 {[%emt 0:01:01]} f5 {[%emt 0:04:17]} 21. exf6 {[%emt 0:01:43]} Qxg3 {[%emt 0:00:36]} 22. f7+ {[%emt 0:00:54]} Kxf7 {[%emt 0:01:14]} 23. Nxg3 {[%emt 0:00:18]} Rd1 {[%emt 0:03:11]} 24. Be3 {[%emt 0:01:04]} Rxa1 {[%emt 0:00:26]} 25. Rxa1 {[%emt 0:00:15]} Bf6 {[%emt 0:02:50]} 26. h5 {[%emt 0:03:21]} Nge7 {[%emt 0:03:55]} 27. Bxh7 {[%emt 0:03:00]} a5 {[%emt 0:01:05]} 28. Ne4 {[%emt 0:01:13]} Nd5 {[%emt 0:02:00]} 29. Neg5+ {[%emt 0:00:50]} Ke7 {[%emt 0:00:21]} 30. Bc5+ {[%emt 0:00:27]} Kd7 {[%emt 0:00:57]} 31. Rd1 {[%emt 0:00:36]} b4 {[%emt 0:03:06]} 32. Ne4 {[%emt 0:02:53]} bxc3 {[%emt 0:00:54]} 33. Nxc3 {[%emt 0:00:15]} Bxc3 {[%emt 0:00:56]} 34. bxc3 {[%emt 0:00:07]} Kc8 {[%emt 0:00:21]} 35. Rc1 {[%emt 0:01:41]} Nf4 {[%emt 0:01:54]} 36. Re1 {[%emt 0:00:30]} Nxh5 {[%emt 0:00:57]} 37. Rxe6 {[%emt 0:00:39]} Nf6 {[%emt 0:03:44]} 38. Bf5 {[%emt 0:00:45]} Kb8 {[%emt 0:01:00]} 39. Nd4 {[%emt 0:01:11]} Nxd4 {[%emt 0:05:29]} 40. Bxd4 {[%emt 0:00:09]} Bc8 {[%emt 0:00:54]} 41. Rb6+ {[%emt 0:30:56]} Kc7 {[%emt 0:30:32]} 42. Rb5 {[%emt 0:03:00]} Bxf5 {[%emt 0:00:00]} 43. Rxf5 {[%emt 0:00:00]} Ne4 {[%emt 0:00:00]} 44. Rxa5 {[%emt 0:00:00]} Rxd4 {[%emt 0:00:00]} 45. cxd4 {[%emt 0:00:00]} c3 {[%emt 0:00:00]} 46. Ra4 {[%emt 0:00:00]} Nd6 {[%emt 0:00:00]} 47. Ra3 {[%emt 0:00:00]} 1/2-1/2

[Event "Prague Open 2025"]
[Site "Prague"]
[Date "2025.01.13"]
[Round "5.17"]
[White "Verner, Matej"]
[Black "Zhukovskyi, Myhaylo"]
[Result "1-0"]
[Annotator "NA RC"]
[ECO "B27"]
[WhiteElo "1948"]
[BlackElo "2122"]
[PlyCount "105"]
[EventDate "2025.01.07"]
[EventType "swiss"]
[EventCountry "CZE"]
[SourceTitle "playchess.com"]
[Source "ChessBase"]
[SourceQuality "1"]
[TimeControl "40/5400+30:1800+30"]

1. e4 {[%emt 0:00:01]} c5 {[%emt 0:00:11]} 2. Nf3 {[%emt 0:00:02]} g6 {[%emt 0:00:06]} 3. d4 {[%emt 0:00:06]} cxd4 {[%emt 0:00:04]} 4. c3 {[%emt 0:00:00]} d3 {[%emt 0:00:13]} 5. Bxd3 {[%emt 0:00:05]} Bg7 {[%emt 0:00:11]} 6. c4 {[%emt 0:00:08]} Nc6 {[%emt 0:02:39]} 7. O-O {[%emt 0:00:07]} d6 {[%emt 0:00:07]} 8. h3 {[%emt 0:00:09]} Nf6 {[%emt 0:00:07]} 9. Nc3 {[%emt 0:00:04]} O-O {[%emt 0:00:12]} 10. Be3 {[%emt 0:00:03]} Nd7 {[%emt 0:01:00]} 11. Rc1 {[%emt 0:00:11]} Nc5 {[%emt 0:02:18]} 12. Bb1 {[%emt 0:01:32]} a5 {[%emt 0:21:50]} 13. b3 {[%emt 0:07:53]} b6 {[%emt 0:22:38]} 14. Nd5 {[%emt 0:08:23]} Be6 {[%emt 0:15:14]} 15. Qe2 {[%emt 0:04:42]} f6 {[%emt 0:03:55]} 16. Rfd1 {[%emt 0:03:15]} Bf7 {[%emt 0:00:14]} 17. h4 {[%emt 0:10:50]} Rb8 {[%emt 0:08:58]} 18. h5 {[%emt 0:02:45]} g5 {[%emt 0:03:54]} 19. Nd4 {[%emt 0:07:32]} Nxd4 {[%emt 0:04:16]} 20. Bxd4 {[%emt 0:00:02]} Rb7 {[%emt 0:06:48]} 21. e5 {[%emt 0:29:05]} Bxd5 {[%emt 0:01:50]} 22. Bxc5 {[%emt 0:01:33]} dxc5 {[%emt 0:02:44]} 23. Rxd5 {[%emt 0:02:46]} Qe8 {[%emt 0:00:22]} 24. e6 {[%emt 0:01:37]} Rb8 {[%emt 0:01:51]} 25. Bf5 {[%emt 0:00:38]} Qc6 {[%emt 0:00:45]} 26. Rcd1 {[%emt 0:05:27]} b5 {[%emt 0:00:30]} 27. g4 {[%emt 0:00:43]} bxc4 {[%emt 0:00:22]} 28. Qxc4 {[%emt 0:00:17]} Rfc8 {[%emt 0:00:39]} 29. Qe4 {[%emt 0:00:29]} Qe8 {[%emt 0:00:29]} 30. Bxh7+ {[%emt 0:00:18]} Kh8 {[%emt 0:00:20]} 31. Bf5 {[%emt 0:02:14]} Bh6 {[%emt 0:00:41]} 32. Qc4 {[%emt 0:00:19]} Qc6 {[%emt 0:00:29]} 33. Rc1 {[%emt 0:01:17]} Rd8 {[%emt 0:00:24]} 34. Rcd1 {[%emt 0:04:39]} Rxd5 {[%emt 0:00:31]} 35. Rxd5 {[%emt 0:00:34]} Rc8 {[%emt 0:00:24]} 36. Rd7 {[%emt 0:02:10]} Bf8 {[%emt 0:00:21]} 37. Qd5 {[%emt 0:02:31]} Kg7 {[%emt 0:00:52]} 38. Qxc6 {[%emt 0:00:31]} Rxc6 {[%emt 0:00:01]} 39. Rd8 {[%emt 0:00:13]} c4 {[%emt 0:00:56]} 40. bxc4 {[%emt 0:00:12]} Rxc4 {[%emt 0:00:05]} 41. h6+ {[%emt 0:30:14]} Kxh6 {[%emt 0:30:10]} 42. Rxf8 {[%emt 0:00:05]} Kg7 {[%emt 0:00:17]} 43. Rf7+ {[%emt 0:00:06]} Kg8 {[%emt 0:00:05]} 44. Rxe7 {[%emt 0:00:04]} Rc1+ {[%emt 0:00:45]} 45. Kg2 {[%emt 0:00:04]} Re1 {[%emt 0:00:09]} 46. Re8+ {[%emt 0:01:04]} Kg7 {[%emt 0:00:08]} 47. Ra8 {[%emt 0:00:35]} Re5 {[%emt 0:00:10]} 48. a4 {[%emt 0:00:35]} Re1 {[%emt 0:00:36]} 49. Rxa5 {[%emt 0:00:20]} Kh6 {[%emt 0:00:11]} 50. Ra8 {[%emt 0:00:50]} Re2 {[%emt 0:00:23]} 51. a5 {[%emt 0:00:21]} Re1 {[%emt 0:00:06]} 52. a6 {[%emt 0:00:07]} Re2 {[%emt 0:00:04]} 53. a7 {[%emt 0:00:07]} 1-0

[Event "Prague Open 2025"]
[Site "Prague"]
[Date "2025.01.13"]
[Round "5.18"]
[White "Musil, Vitezslav"]
[Black "Kuhn, Ulf"]
[Result "1-0"]
[Annotator "NA RC"]
[ECO "B40"]
[WhiteElo "1937"]
[BlackElo "2115"]
[PlyCount "61"]
[EventDate "2025.01.07"]
[EventType "swiss"]
[EventCountry "CZE"]
[SourceTitle "playchess.com"]
[Source "ChessBase"]
[SourceQuality "1"]
[TimeControl "40/5400+30:1800+30"]

1. e4 {[%emt 0:00:08]} c5 {[%emt 0:00:03]} 2. Nf3 {[%emt 0:00:06]} e6 {[%emt 0:00:06]} 3. g3 {[%emt 0:01:03]} Nc6 {[%emt 0:00:43]} 4. Bg2 {[%emt 0:00:06]} Nf6 {[%emt 0:00:24]} 5. Nc3 {[%emt 0:00:51]} d5 {[%emt 0:00:41]} 6. exd5 {[%emt 0:00:08]} exd5 {[%emt 0:00:10]} 7. d4 {[%emt 0:00:31]} cxd4 {[%emt 0:00:39]} 8. Nxd4 {[%emt 0:00:35]} Bg4 {[%emt 0:00:27]} 9. Nxc6 {[%emt 0:04:55]} bxc6 {[%emt 0:00:47]} 10. Qd3 {[%emt 0:00:55]} Be7 {[%emt 0:06:11]} 11. O-O {[%emt 0:00:53]} O-O {[%emt 0:01:31]} 12. Be3 {[%emt 0:02:54]} Nd7 {[%emt 0:09:31]} 13. f3 {[%emt 0:16:51]} Bh5 {[%emt 0:01:28]} 14. Qd2 {[%emt 0:01:17]} Nb6 {[%emt 0:05:25]} 15. b3 {[%emt 0:03:49]} Re8 {[%emt 0:09:06]} 16. Ne2 {[%emt 0:07:29]} Bg6 {[%emt 0:07:47]} 17. Nf4 {[%emt 0:03:38]} Bf5 {[%emt 0:01:22]} 18. g4 {[%emt 0:03:20]} Bc8 {[%emt 0:00:47]} 19. Nh5 {[%emt 0:03:14]} g6 {[%emt 0:04:49]} 20. Ng3 {[%emt 0:00:46]} a5 {[%emt 0:07:22]} 21. Qf2 {[%emt 0:03:12]} Rb8 {[%emt 0:04:42]} 22. Rad1 {[%emt 0:00:19]} Qc7 {[%emt 0:01:13]} 23. Rfe1 {[%emt 0:01:57]} Be6 {[%emt 0:07:40]} 24. a4 {[%emt 0:05:36]} c5 {[%emt 0:01:19]} 25. Qd2 {[%emt 0:01:28]} Ra8 {[%emt 0:04:20]} 26. Bf4 {[%emt 0:01:22]} Qc8 {[%emt 0:01:46]} 27. Bf1 {[%emt 0:01:02]} Qb7 {[%emt 0:03:19]} 28. Bb5 {[%emt 0:00:15]} Red8 {[%emt 0:00:30]} 29. Bg5 {[%emt 0:00:39]} Bxg5 {[%emt 0:03:59]} 30. Qxg5 {[%emt 0:00:14]} Nc8 {[%emt 0:02:16]} 31. Qxd8+ {[%emt 0:02:20]} 1-0

[Event "Prague Open 2025"]
[Site "Prague"]
[Date "2025.01.13"]
[Round "5.19"]
[White "Diachek, Andrii"]
[Black "Markina, Sofiia"]
[Result "1-0"]
[Annotator "NA RC"]
[ECO "D10"]
[WhiteElo "2104"]
[BlackElo "1775"]
[PlyCount "85"]
[EventDate "2025.01.07"]
[EventType "swiss"]
[EventCountry "CZE"]
[SourceTitle "playchess.com"]
[Source "ChessBase"]
[SourceQuality "1"]
[TimeControl "40/5400+30:1800+30"]

1. d4 {[%emt 0:00:04]} d5 {[%emt 0:00:05]} 2. c4 {[%emt 0:00:05]} c6 {[%emt 0:00:03]} 3. Nc3 {[%emt 0:00:05]} Nf6 {[%emt 0:00:04]} 4. e3 {[%emt 0:00:38]} dxc4 {[%emt 0:01:23]} 5. Bxc4 {[%emt 0:00:17]} Bf5 {[%emt 0:00:12]} 6. Qb3 {[%emt 0:03:03]} e6 {[%emt 0:02:24]} 7. Qxb7 {[%emt 0:01:41]} Nbd7 {[%emt 0:00:18]} 8. Qxc6 {[%emt 0:01:51]} Be7 {[%emt 0:02:20]} 9. Nf3 {[%emt 0:05:19]} O-O {[%emt 0:01:15]} 10. Be2 {[%emt 0:04:06]} Rc8 {[%emt 0:04:17]} 11. Qa4 {[%emt 0:02:00]} Rc7 {[%emt 0:09:34]} 12. O-O {[%emt 0:01:56]} Nb6 {[%emt 0:07:53]} 13. Qd1 {[%emt 0:02:20]} Nfd5 {[%emt 0:12:59]} 14. Bd2 {[%emt 0:05:45]} Nxc3 {[%emt 0:02:06]} 15. Bxc3 {[%emt 0:00:25]} Qb8 {[%emt 0:06:54]} 16. Ba5 {[%emt 0:15:03]} Qb7 {[%emt 0:15:06]} 17. Ne5 {[%emt 0:12:15]} Rfc8 {[%emt 0:02:40]} 18. Bd3 {[%emt 0:04:26]} Bxd3 {[%emt 0:05:02]} 19. Nxd3 {[%emt 0:00:56]} Qa6 {[%emt 0:02:41]} 20. Bxb6 {[%emt 0:01:20]} Qxb6 {[%emt 0:00:20]} 21. b3 {[%emt 0:00:56]} Ba3 {[%emt 0:00:32]} 22. Ne5 {[%emt 0:00:36]} Qb8 {[%emt 0:02:52]} 23. Nc4 {[%emt 0:00:27]} Be7 {[%emt 0:00:07]} 24. Qh5 {[%emt 0:03:38]} Rd8 {[%emt 0:01:30]} 25. Rac1 {[%emt 0:05:04]} Qc8 {[%emt 0:02:49]} 26. Rc2 {[%emt 0:03:50]} Rd5 {[%emt 0:00:57]} 27. Qe2 {[%emt 0:00:38]} Rg5 {[%emt 0:04:09]} 28. Rfc1 {[%emt 0:01:39]} Qa6 {[%emt 0:00:41]} 29. Qf1 {[%emt 0:02:44]} f6 {[%emt 0:03:13]} 30. Nd2 {[%emt 0:02:00]} Qxf1+ {[%emt 0:00:12]} 31. Kxf1 {[%emt 0:00:09]} Rxc2 32. Rxc2 {[%emt 0:00:04]} Kf7 {[%emt 0:00:36]} 33. Rc7 {[%emt 0:00:51]} Ra5 {[%emt 0:00:18]} 34. a4 {[%emt 0:00:10]} Ke8 {[%emt 0:00:16]} 35. Nc4 {[%emt 0:01:50]} Ra6 {[%emt 0:00:09]} 36. h4 {[%emt 0:01:27]} h5 {[%emt 0:01:37]} 37. Ke2 {[%emt 0:00:32]} g5 {[%emt 0:00:57]} 38. hxg5 {[%emt 0:00:31]} fxg5 {[%emt 0:00:07]} 39. f3 {[%emt 0:02:34]} Kf8 {[%emt 0:03:45]} 40. Kd3 {[%emt 0:00:30]} Bf6 {[%emt 0:00:44]} 41. Ke4 {[%emt 0:30:34]} Kg8 {[%emt 0:30:42]} 42. a5 {[%emt 0:01:12]} Bg7 {[%emt 0:00:23]} 43. b4 {[%emt 0:00:41]} 1-0